Cogmind - Beta 15 @@@ ROGUE MODE // 2025.06.06 @ 11:17:04 Player: Nisakard Result: Self-destructed Performance ------------- Evolutions (2) 1000 Regions Visited (7) 1400 Robots Destroyed (126) 630 Value Destroyed (3141) 3141 Prototype IDs (35) 700 Alien Tech Used (0) 0 Bonus (300) 300 TOTAL SCORE: 7171 Bonus ------- Aligned with FarCom 300 Cogmind --------- Core Integrity 349/550 Matter 300/300 Energy 240/240 System Corruption 0% Temperature Cool (0) Movement Core (900) Ox17 Location -8/Materials Parts ------- > --- POWER (1) -------- Nuclear Core > --- PROPULSION (3) --- Potential Leg > --- UTILITY (5) ------ High-capacity Storage Unit Improved Signal Interpreter Hardlight Generator Hacking Suite > --- WEAPON (2) ------- (None) > --- INVENTORY (20) --- Light Deuterium Engine Light Nuclear Core Potential Leg Armored Huge Wheel Signal Interpreter Improved Terrain Scanner Melee Analysis Suite Melee Analysis Suite Improved Propulsion Shielding Improved Shield Generator Hacking Suite Hacking Suite System Shield Shock Bomb Launcher Missile Launcher Missile Launcher Datajack Heavy Mace Heavy Mace Peak State ------------ > --- POWER ------------ Heavy Ion Engine > --- PROPULSION ------- Potential Leg Armored Huge Wheel > --- UTILITY ---------- High-capacity Storage Unit Improved Signal Interpreter Hardlight Generator Hacking Suite Hacking Suite > --- WEAPON ----------- Heavy Mace Makeshift Spear > --- INVENTORY -------- Light Deuterium Engine Light Nuclear Core Potential Leg Armored Huge Wheel Armored Huge Wheel Signal Interpreter Improved Terrain Scanner Melee Analysis Suite Melee Analysis Suite ECM Suite Propulsion Shielding Improved Shield Generator Hacking Suite Hacking Suite Advanced Beam Rifle Shock Bomb Launcher Datajack Heavy Mace [Rating: 47] Favorites ----------- Power Heavy Ion Engine Engine Heavy Ion Engine Power Core Nuclear Core Propulsion Light Treads Treads Light Treads Leg Potential Leg Wheel Armored Wheel Utility High-capacity Storage Unit Device Seismic Detector Storage High-capacity Storage Unit Processor Visual Processing Unit Hackware Hacking Suite Protection Medium Armor Plating Weapon Heavy EM Pulse Gun Energy Gun Heavy EM Pulse Gun Ballistic Gun Improved Assault Rifle Ballistic Cannon Flak Cannon Impact Weapon Heavy Mace Piercing Weapon Makeshift Spear Build | -11 -10 -10 -9 -9 -9 -8 -8 ------- Run | Yrd Mat Min Mat Min Exi Min Mat Slots Evolved 4 | . . . 2 . . . 2 Power . | . . . . . . . . Propulsion 1 | . . . 1 . . . . Utility 3 | . . . 1 . . . 2 Weapon . | . . . . . . . . Parts Attached 74 | 9 12 2 31 1 2 . 17 Power 8 | 1 4 1 1 . . . 1 Engine 7 | 1 4 1 1 . . . . Core 1 | . . . . . . . 1 Reactor . | . . . . . . . . Propulsion 16 | 2 . . 9 . 2 . 3 Treads 8 | 2 . . 6 . . . . Leg 3 | . . . . . 2 . 1 Wheel 5 | . . . 3 . . . 2 Hover . | . . . . . . . . Flight . | . . . . . . . . Utility 20 | 3 3 . 6 1 . . 7 Device 4 | 2 1 . . . . . 1 Storage 6 | 1 2 . 2 . . . 1 Processor 2 | . . . 1 . . . 1 Hackware 2 | . . . . . . . 2 Protection 6 | . . . 3 1 . . 2 Artifact . | . . . . . . . . Weapon 30 | 3 5 1 15 . . . 6 Energy Gun 15 | 2 4 1 6 . . . 2 Energy Cannon . | . . . . . . . . Ballistic Gun 7 | 1 1 . 5 . . . . Ballistic Cannon 4 | . . . 4 . . . . Launcher . | . . . . . . . . Special Weapon . | . . . . . . . . Impact Weapon 3 | . . . . . . . 3 Slashing Weapon . | . . . . . . . . Piercing Weapon 1 | . . . . . . . 1 Special Melee Weapon . | . . . . . . . . Unidentified Prototypes 6 | . . . 3 . . . 3 Parts Lost 15 | . 1 2 4 1 . . 7 Power 1 | . . 1 . . . . . Propulsion 2 | . . . 1 . . . 1 Utility 5 | . . . 2 1 . . 2 Weapon 7 | . 1 1 1 . . . 4 Highest Loss Streak 3 | . 1 1 2 1 . . 3 To Critical Strikes . | . . . . . . . . Average Backups 15 | 1 9 10 17 19 20 20 17 Power 2 | . 2 1 2 3 3 3 2 Propulsion 1 | . 1 1 1 1 1 1 2 Utility 6 | . 3 4 7 9 10 10 7 Weapon 4 | . 3 3 6 5 5 5 4 Tool/Special . | . . . . . . . . Unused Backups 37 | 1 5 . 3 1 . 1 26 Power 6 | . 1 . . . . . 5 Propulsion 7 | . 3 . . . . . 4 Utility 11 | 1 . . . . . . 10 Weapon 12 | . 1 . 3 1 . 1 6 Tool/Special 1 | . . . . . . . 1 Average Slot Usage (%) 97 | . 99 99 96 99 100 100 90 Engine 10 | . 14 13 10 11 11 11 6 Treads 17 | . 28 28 22 22 17 . . Leg 3 | . . . . . 4 22 10 Wheel 6 | . . . 9 11 11 11 8 Device 6 | . 14 14 5 . . . 3 Storage 11 | . 14 14 11 11 11 11 9 Processor 5 | . . . 5 11 11 11 9 Hackware 3 | . . . . . . . 17 Protection 5 | . . . 7 10 11 11 5 Energy Gun 17 | . 26 27 11 22 22 22 6 Ballistic Gun 1 | . 1 . 3 . . . . Ballistic Cannon 2 | . . . 7 . . . . Impact Weapon 1 | . . . . . . . 5 Piercing Weapon 1 | . . . . . . . 5 Peak Build Rating 47 | 7 8 8 20 20 38 38 47 Average Rating 21 | 5 7 7 16 19 23 37 44 On Entrance 17 | . 7 8 8 19 20 38 38 Naked Turns . | . . . . . . . . Heaviest Build 67 | 13 30 30 67 61 61 61 64 Greatest Support 72 | 40 40 40 60 12 60 12 72 Greatest Overweight (x) 17 | 4 . . 6 5 5 5 17 Average Overweight (x) 2 | 1 . . 4 4 4 5 2 Largest Inventory Capacity 20 | 8 15 15 20 20 20 20 20 Average Capacity 17 | 6 11 15 19 20 20 20 20 Most Carried 20 | 5 13 12 20 20 20 20 20 Average Carried 16 | 2 10 10 17 19 20 19 19 Final Capacity 20 | 8 15 15 20 20 20 20 20 Final Carried 20 | 5 13 11 20 20 20 20 20 Class Distribution -------------------- 69% | Mutant 20% | Hacker-Mutant 10% | Scavenger-Mutant Dominant Class ---------------- Mutant | -10/Materials Mutant | -10/Mines Mutant | -9/Materials Mutant | -9/Mines Mutant | -9/Exiles Mutant | -8/Mines Hacker-Mutant | -8/Materials Resources | -11 -10 -10 -9 -9 -9 -8 -8 ----------- Run | Yrd Mat Min Mat Min Exi Min Mat Matter Collected 1698 | 269 228 20 770 119 . 38 254 Remotely . | . . . . . . . . Salvage Created 4800 | 94 813 178 1477 110 . 146 1982 Parts 246 | 6 45 16 95 4 . 9 71 Haulers Intercepted 11 | . 2 . 5 . . . 4 Recyclers Shooed 3 | 1 . 1 . . . . 1 Parts Field Recycled . | . . . . . . . . Retrieved Matter . | . . . . . . . . Parts Self-Destructed . | . . . . . . . . Prevented . | . . . . . . . . Kills | -11 -10 -10 -9 -9 -9 -8 -8 ------- Run | Yrd Mat Min Mat Min Exi Min Mat Combat Hostiles Destroyed 75 | . 16 5 25 3 . 3 23 Melee 6 | . . . . . . . 6 Guns 38 | . 13 4 10 3 . 2 6 Cannons 13 | . . . 12 . . . 1 AOE 10 | . 3 1 3 . . 1 2 Classes Destroyed 12 | 2 6 . 3 . . . 1 Worker 8 | . 3 . 1 . . . 4 Builder 3 | . . . 2 . . . 1 Tunneler 5 | 1 . 1 1 . . 1 1 Hauler 11 | . 2 . 5 . . . 4 Recycler 9 | 1 1 . 3 . . . 4 Operator 2 | . 1 . 1 . . . . Watcher 13 | . 3 . 5 . . . 5 Swarmer 19 | . 6 3 10 . . . . Grunt 38 | . 10 2 7 3 . 2 14 Duelist 2 | . . . 1 . . 1 . Sentry 14 | . . . 7 . . . 7 Specialist 2 | . . . . . . . 2 Best Kill Streak 7 | 2 4 3 7 3 . 3 4 Combat Bots Only 6 | . 3 3 6 3 . 3 3 Max Kills in Single Turn 3 | 1 3 1 2 1 . 1 1 Gunslinging . | . . . . . . . . Exploded 3 | . 3 1 2 . . 1 1 Melee 1 | . . . . . . . 1 Uniques/NPCs Destroyed . | . . . . . . . . Combat | -11 -10 -10 -9 -9 -9 -8 -8 -------- Run | Yrd Mat Min Mat Min Exi Min Mat Hostile Shots Fired 255 | . 54 13 78 20 . 7 83 Missed 55 | . 11 4 21 5 . 1 13 Hits 200 | . 43 9 57 15 . 6 70 Melee 1 | . . . 1 . . . . Projectile 199 | . 43 9 56 15 . 6 70 AOE 4 | . . . . 4 . . . Critical Strikes 10 | . 2 . 1 . . 1 6 Damage Taken 3518 | . 580 193 863 377 . 129 1376 Core 519 | . 117 17 49 135 . . 201 Absorbed by Shields 116 | . . . . . . . 116 Regen/Repaired (Parts) 202 | . . . 202 . . . . Core Remaining (%) 66 | 100 . 46 . . . 54 . Volleys Fired 227 | 9 70 12 90 7 . 7 32 Largest 2 | 2 2 2 2 2 . 2 2 Hottest 106 | 70 100 80 90 90 . 90 106 Shots Fired 451 | 18 140 24 179 14 . 14 62 Gun 390 | 18 140 24 122 14 . 14 58 Cannon 61 | . . . 57 . . . 4 Launcher . | . . . . . . . . Special . | . . . . . . . . Kinetic 113 | 9 20 . 80 . . . 4 Thermal 87 | 9 48 . 10 . . . 20 Explosive . | . . . . . . . . Electromagnetic 251 | . 72 24 89 14 . 14 38 Robot Hit Streak 15 | 5 7 6 14 9 . 6 15 Robot Miss Streak 8 | 4 5 2 8 2 . 1 3 Penetration Max . | . . . . . . . . Secondary Targets 1 | . . . . . . 1 . Max Gunslinging Chain 1 | . . . . . . 1 . Shots Hit Robots 342 | 9 74 16 126 10 . 9 98 Core Hits 177 | 3 36 9 73 6 . 7 43 Critical Kills 2 | . . . . . . . 2 Critical Parts Destroyed 5 | . . . . . . . 5 Critical Strikes 15 | . 2 1 1 . . . 11 Burn 3 | . 1 . . . . . 2 Corrupt 4 | . 1 1 1 . . . 1 Smash 7 | . . . . . . . 7 Impale 1 | . . . . . . . 1 Melee Attacks 72 | . . . . . . . 72 Impact 50 | . . . . . . . 50 Slashing . | . . . . . . . . Piercing 22 | . . . . . . . 22 Sneak Attacks 15 | . . . . . . . 15 Combat Hostiles 2 | . . . . . . . 2 Follow-up Attacks 8 | . . . . . . . 8 Damage Inflicted 8344 | 114 1373 320 2405 222 . 271 3639 Guns 3822 | 114 1001 206 1379 155 . 136 831 Cannons 786 | . . . 712 . . . 74 Explosions 1172 | . 372 101 314 67 . 135 183 Melee 2551 | . . . . . . . 2551 Ramming 13 | . . 13 . . . . . Kinetic 1216 | 40 133 . 969 . . . 74 Thermal 1939 | 74 658 101 421 67 . 135 483 Explosive . | . . . . . . . . Electromagnetic 2625 | . 582 206 1015 155 . 136 531 Impact 2128 | . . . . . . . 2128 Slashing . | . . . . . . . . Piercing 423 | . . . . . . . 423 Highest Corruption 1 | . . . 1 1 1 1 . Average Corruption 1 | . . . 1 1 1 1 . Corruption Purged . | . . . . . . . . Corruption Blocked . | . . . . . . . . Effects 28 | . . . 14 4 5 5 . Message Errors 4 | . . . 3 1 . . . Matter Fused 7 | . . . 4 1 1 1 . Heat Flow Errors 8 | . . . 2 1 1 4 . Energy Discharges 2 | . . . 1 1 . . . Parts Fused 2 | . . . 1 . 1 . . Data Loss (minor) 3 | . . . 2 . 1 . . Data Loss (major) 1 | . . . . . 1 . . Alerts 1 | . . . 1 . . . . Overload Shots . | . . . . . . . . Overflow Damage 769 | . 66 12 11 . . . 680 Projectiles . | . . . . . . . . Explosions 106 | . 66 12 11 . . . 17 Melee 663 | . . . . . . . 663 Knockbacks 30 | . . . 15 . . . 15 Impact 11 | . . . . . . . 11 Kinetic 18 | . . . 14 . . . 4 Secondary 1 | . . . 1 . . . . Self-Inflicted Damage 569 | . 127 99 170 51 . 42 80 Shots 15 | . 3 3 4 2 . 1 2 Rammed 4 | . . 4 . . . . . Targets Rammed 4 | . . 4 . . . . . Kicked . | . . . . . . . . Crushed . | . . . . . . . . Highest Temperature 282 | 18 234 78 233 180 247 282 281 Average Temperature 65 | 10 62 31 49 71 133 115 94 Received Heat Transfer 1016 | . 213 33 207 72 . 72 419 Effects 1 | . . . . . . . 1 Energy Bleed 1 | . . . . . . . 1 Siege Activations . | . . . . . . . . Martial Activations . | . . . . . . . . Shielding Activations . | . . . . . . . . Robots Disrupted . | . . . . . . . . Combat Hostiles . | . . . . . . . . Robots Corrupted 18 | . . . 1 . . . 17 Combat Hostiles 8 | . . . . . . . 8 Parts Fried 28 | . 2 1 4 . . . 21 Impact Corruptions 30 | . . . . . . . 30 Robots Melted . | . . . . . . . . Combat Hostiles . | . . . . . . . . Parts Melted 1 | . 1 . . . . . . Heat Transferred 3048 | 222 1101 150 522 100 . 150 803 Parts Sabotaged . | . . . . . . . . Parts Stolen . | . . . . . . . . Parts Stripped . | . . . . . . . . Power Chain Reactions 15 | . 3 2 4 1 . 2 3 Alert | -11 -10 -10 -9 -9 -9 -8 -8 ------- Run | Yrd Mat Min Mat Min Exi Min Mat Maximum Alert Level 1 | . . . 1 . . . 1 Low Security (%) 91 | 100 100 100 74 100 . 100 94 Level 1 8 | . . . 25 . . . 5 Level 2 . | . . . . . . . . Level 3 . | . . . . . . . . Level 4 . | . . . . . . . . Level 5 . | . . . . . . . . High Security . | . . . . . . . . Max Security . | . . . . . . . . Peak Influence 280 | 5 125 89 240 185 . 71 280 Initial 84 | . . . . 84 . . . Average 58 | . 33 10 116 40 . 8 62 Influence Increases 2657 | 10 583 161 833 121 . 86 863 Destroy 0b10 Robot/C 1500 | . 320 100 500 60 . 60 460 Destroy 0b10 Robot/NC 255 | 10 50 5 90 . . 5 95 Destroy Leader 398 | . 70 20 150 10 . 10 138 Successful Hack 95 | . . . 49 . . . 46 Select Force Hacks 30 | . 30 . . . . . . Disable Machine 165 | . 60 15 30 30 . . 30 Destroy Structure 124 | . 38 21 14 21 . 11 19 Lose Combat Pursuer 90 | . 15 . . . . . 75 Influence Decreases 2411 | 10 583 161 615 339 . 86 617 Entered New Map 134 | . . . . 134 . . . Time Decay 1754 | 10 460 141 470 195 . 86 392 Lost Part 130 | . 10 20 30 10 . . 60 Purge Threat 393 | . 113 . 115 . . . 165 Squads Dispatched 7 | . 2 . 2 . . . 3 Investigation 2 | . 1 . . . . . 1 Extermination . | . . . . . . . . Reinforcement 5 | . 1 . 2 . . . 2 Assault . | . . . . . . . . Garrison . | . . . . . . . . Intercept . | . . . . . . . . Searches Triggered . | . . . . . . . . Construction Impeded . | . . . . . . . . Haulers Reinforced . | . . . . . . . . Active Scanning Responses . | . . . . . . . . Cargo Convoy Interrupts . | . . . . . . . . Stealth | -11 -10 -10 -9 -9 -9 -8 -8 --------- Run | Yrd Mat Min Mat Min Exi Min Mat Distress Signals 6 | . 2 . 2 . . . 2 Communications Jammed . | . . . . . . . . Distress Signals . | . . . . . . . . Times Spotted 111 | . 25 5 35 4 . 3 39 Peak Tracking Total 7 | . 4 3 6 3 . 3 7 Tactical Retreats 6 | . 1 . . . . . 5 Traps | -11 -10 -10 -9 -9 -9 -8 -8 ------- Run | Yrd Mat Min Mat Min Exi Min Mat Traps Triggered 6 | . . . 5 . . . 1 Indirectly . | . . . . . . . . Trap Hack Attempts . | . . . . . . . . Triggered . | . . . . . . . . Disarmed . | . . . . . . . . Reprogrammed . | . . . . . . . . Reused . | . . . . . . . . Traps Extracted . | . . . . . . . . Installed . | . . . . . . . . Triggered . | . . . . . . . . Machines | -11 -10 -10 -9 -9 -9 -8 -8 ---------- Run | Yrd Mat Min Mat Min Exi Min Mat Machines Disabled 11 | . 4 1 2 2 . . 2 Max in Single Turn 2 | . 2 1 2 2 . . 1 Machines Repaired . | . . . . . . . . Machines Dismantled . | . . . . . . . . Machines Sabotaged . | . . . . . . . . Overloaded Fab Kills . | . . . . . . . . Hacking | -11 -10 -10 -9 -9 -9 -8 -8 --------- Run | Yrd Mat Min Mat Min Exi Min Mat Machines Accessed 29 | . 8 . 12 . 1 . 8 Terminals 23 | . 7 . 9 . . . 7 Fabricators . | . . . . . . . . Repair Stations 2 | . . . 2 . . . . Recycling Units 1 | . 1 . . . . . . Scanalyzers 2 | . . . 1 . . . 1 Garrison Access . | . . . . . . . . Total Hacks 93 | . 16 . 41 . 1 . 35 Successful 51 | . 5 . 24 . 1 . 21 Failed 42 | . 11 . 17 . . . 14 Catastrophic 9 | . 3 . 3 . . . 3 Database Lockouts . | . . . . . . . . Manual 38 | . 11 . 16 . 1 . 10 Terminals 71 | . 15 . 27 . . . 29 Fabricators . | . . . . . . . . Repair Stations 12 | . . . 12 . . . . Recycling Units 1 | . 1 . . . . . . Scanalyzers 8 | . . . 2 . . . 6 Garrison Access . | . . . . . . . . Terminal Hacks 34 | . 4 . 12 . 1 . 17 Record 1 | . 1 . . . . . . Robot Analysis 2 | . . . 1 . . . 1 Prototype ID Bank 3 | . . . . . . . 3 Level Access Points 1 | . . . . . . . 1 Branch Access Points 3 | . . . 1 . . . 2 Emergency Access Points 3 | . . . 1 . . . 2 Terminal Index 1 | . . . . . . . 1 Recycling Unit Index 1 | . . . . . . . 1 Alert Level 2 | . . . 1 . . . 1 Unreport Threat 5 | . 1 . 2 . . . 2 Locate Traps 5 | . 1 . 2 . . . 2 Dispatch Records 1 | . . . 1 . . . . Recall Investigation 3 | . 1 . 2 . . . . Zone Layout 2 | . . . 1 . . . 1 Proto ID Catalog 1 | . . . . . 1 . . Fabricator Hacks . | . . . . . . . . Repair Station Hacks 10 | . . . 10 . . . . Scan Component 5 | . . . 5 . . . . Repair 5 | . . . 5 . . . . Recycling Unit Hacks . | . . . . . . . . Scanalyzer 6 | . . . 2 . . . 4 Insert Component 3 | . . . 1 . . . 2 Analyze 3 | . . . 1 . . . 2 Garrison Access Hacks . | . . . . . . . . Unauthorized Hacks 1 | . 1 . . . . . . Terminals . | . . . . . . . . Fabricators . | . . . . . . . . Repair Stations . | . . . . . . . . Recycling Units 1 | . 1 . . . . . . Tunnel 1 | . 1 . . . . . . Scanalyzers . | . . . . . . . . Garrison Access . | . . . . . . . . Data Cores Recovered . | . . . . . . . . Used . | . . . . . . . . Hacking Detections 24 | . 7 . 10 . . . 7 Full Trace Events 3 | . 1 . 1 . . . 1 Feedback Events . | . . . . . . . . Feedback Blocked . | . . . . . . . . Robot Schematics Acquired . | . . . . . . . . Robots Built . | . . . . . . . . Authchips . | . . . . . . . . Time . | . . . . . . . . Total Robot Build Rating . | . . . . . . . . Part Schematics Acquired 3 | . . . 1 . . . 2 Parts Built . | . . . . . . . . Authchips . | . . . . . . . . Time . | . . . . . . . . Total Part Build Rating . | . . . . . . . . Parts Repaired 5 | . . . 5 . . . . Time 173 | . . . 173 . . . . Parts Recycled . | . . . . . . . . Recycled Matter . | . . . . . . . . Retrieved Matter . | . . . . . . . . Retrieved Components . | . . . . . . . . Parts Scanalyzed 3 | . . . 1 . . . 2 Part Schematics Acquired 3 | . . . 1 . . . 2 Parts Damaged . | . . . . . . . . Bothacking | -11 -10 -10 -9 -9 -9 -8 -8 ------------ Run | Yrd Mat Min Mat Min Exi Min Mat Used RIF Installer . | . . . . . . . . Robots Hacked . | . . . . . . . . Non-combat . | . . . . . . . . Combat . | . . . . . . . . Robot Hacks Applied . | . . . . . . . . Relay Couplers Released . | . . . . . . . . Fabnet Peak Effective % . | . . . . . . . . Robots Rewired . | . . . . . . . . Allies Hacked . | . . . . . . . . Hacks Repelled . | . . . . . . . . Allies | -11 -10 -10 -9 -9 -9 -8 -8 -------- Run | Yrd Mat Min Mat Min Exi Min Mat Total Allies 1 | . . 1 . . . . . Largest Group 1 | . . 1 . . . . . Highest-Rated Group 31 | . . 31 . . . . . Highest-Rated Ally 31 | . . 31 . . . . . Total Orders . | . . . . . . . . Ally Attacks . | . . . . . . . . Total Damage . | . . . . . . . . Kills . | . . . . . . . . Allies Corrupted . | . . . . . . . . Allies Melted . | . . . . . . . . Intel | -11 -10 -10 -9 -9 -9 -8 -8 ------- Run | Yrd Mat Min Mat Min Exi Min Mat Active Infowar (turns) 10085 | 113 1981 1269 2798 940 815 703 1466 Optics 5406 | . . . 1482 940 815 703 1466 Terrain 39 | 39 . . . . . . . Seismic 4851 | 105 1981 1269 1496 . . . . Robot Analysis Total 2 | . . . 1 . . . 1 Derelict Logs Recovered 2 | . . 1 . 1 . . . Drone Launches . | . . . . . . . . Drone Recoveries . | . . . . . . . . Exploration | -11 -10 -10 -9 -9 -9 -8 -8 ------------- Run | Yrd Mat Min Mat Min Exi Min Mat Turns Passed 10866 | 149 1981 1269 2798 940 815 703 2211 Spaces Moved 5997 | 73 1062 748 1375 555 491 401 1292 Core 51 | 50 . . . . . . 1 Treads 1978 | 23 1062 748 145 . . . . Legs 52 | . . . . . 7 . 45 Wheels 3916 | . . . 1230 555 484 401 1246 Hover . | . . . . . . . . Flight . | . . . . . . . . Fastest Speed 50 | 50 160 160 130 150 165 165 90 Average Speed 154 | 141 160 160 157 164 165 165 130 Slowest Speed 900 | 250 160 160 320 165 250 165 900 Overloaded Moves . | . . . . . . . . Propulsion Burnouts . | . . . . . . . . Robots Hopped . | . . . . . . . . Potential Cave-ins . | . . . . . . . . Cave-ins Triggered . | . . . . . . . . Exploration Rate (%) 76 | 4 100 98 84 87 92 75 75 Regions Visited 7 Branch Regions 4 Pre-discovered Areas 1 | . 1 . . . . . . Known Exits Taken 2 | . . . 1 . . 1 . Unknown Exits Taken 5 | 1 1 1 . 1 1 . . Scrap Searched 4 | . . 1 . 2 . 1 . Spaces Dug . | . . . . . . . . Terrain Destroyed 116 | . 34 21 9 21 . 15 16 Melee . | . . . . . . . . Projectile . | . . . . . . . . AOE 116 | . 34 21 9 21 . 15 16 Terrain Rammed . | . . . . . . . . Walls Destroyed . | . . . . . . . . Machines Disabled . | . . . . . . . . Actions | -11 -10 -10 -9 -9 -9 -8 -8 --------- Run | Yrd Mat Min Mat Min Exi Min Mat Total 7067 | 97 1208 795 1815 567 495 430 1660 Wait 567 | . 37 26 275 2 1 17 209 Move 5990 | 72 1061 747 1374 554 490 400 1292 Hop . | . . . . . . . . Pick Up 67 | 6 15 2 17 2 . 3 22 Fast Attach 26 | 7 . . 14 . 2 . 3 Attach 17 | . 1 2 5 1 . . 8 Detach . | . . . . . . . . Swap 52 | 2 11 . 26 . . . 13 Drop 59 | 1 13 2 14 1 2 3 23 Fire 227 | 9 70 12 90 7 . 7 32 Melee 58 | . . . . . . . 58 Ram . | . . . . . . . . Kick . | . . . . . . . . Crush 4 | . . 4 . . . . . Escape Stasis . | . . . . . . . . Rewire . | . . . . . . . . Trap . | . . . . . . . . Miscellaneous . | . . . . . . . . Route ------- -11/Scrapyard -10/Materials (discovered 5 exits: *Mat x3 / [*Min] / [*Sub]) -10/Mines (discovered 3 exits: *Mat x2 / [*Sub]) -9/Materials (discovered 7 exits: *Mat x3 / *Min x2 / *Sto x2) -9/Mines (discovered 4 exits: *Mat x2 / *Exi / [*Zio]) -9/Exiles (discovered 2 exits: [*Min x2]) -8/Mines -8/Materials (discovered 3 exits: *Fac x3) History --------- Turn | Location | Event 5 | -11/Scrapyard | Discovered new exit (range 16) 150 | -11/Scrapyard | Entered Materials 301 | -10/Materials | Build established: Mutant 441 | -10/Materials | Discovered new exit (range 3) 799 | -10/Materials | Discovered new exit (range 6) 974 | -10/Materials | Discovered new exit (range 9) 1278 | -10/Materials | Discovered new exit (range 16) 1531 | -10/Materials | Discovered new exit (range 5) 2131 | -10/Materials | Entered Mines 2171 | -10/Mines | Discovered new exit (range 9) 2493 | -10/Mines | Discovered new exit (range 9) 2568 | -10/Mines | Discovered new exit (range 10) 2649 | -10/Mines | Received a Mining Laser from a helpful Derelict 3022 | -10/Mines | Core integrity fell below 50% 3400 | -10/Mines | Entered Materials 3400 | -9/Materials | Evolved 2 slots: Propulsion x1, Utility x1 3401 | -9/Materials | Identified exit to Mines 3445 | -9/Materials | Identified exit to Storage 4173 | -9/Materials | Discovered new exit (range 8) 5016 | -9/Materials | Build established: Scavenger-Mutant 5100 | -9/Materials | Discovered new exit (range 5) 5159 | -9/Materials | Repaired Lgt. Treads 5191 | -9/Materials | Repaired Med. Armor Plating 5802 | -9/Materials | Repaired Med. Armor Plating 5836 | -9/Materials | Repaired Hvy. EM Pulse Gun 5888 | -9/Materials | Repaired Hvy. Ion Engine 5913 | -9/Materials | Discovered new exit (range 11) 6044 | -9/Materials | Build established: Mutant 6198 | -9/Materials | Entered Mines 6279 | -9/Mines | A Derelict revealed a hidden shortcut to a safe place 6300 | -9/Mines | Identified exit to Materials 6495 | -9/Mines | Assembled infested the area 6500 | -9/Mines | Assisted by a Guerilla fighting off Assembled 6623 | -9/Mines | A weapon hastily lodged in a ceiling crevice suddenly fell to the ground 7004 | -9/Mines | Deemed a non-threat by the Exiles lab entrance 7004 | -9/Mines | Discovered new exit (range 5) 7023 | -9/Mines | Discovered exit to Materials (range 7) 7138 | -9/Mines | Entered Exiles 7160 | -9/Exiles | Discovered new exit (range 16) 7178 | -9/Exiles | Met 8R-AWN 7208 | -9/Exiles | Met EX-HEX 7290 | -9/Exiles | Met EX-DEC 7332 | -9/Exiles | Visited The Gauntlet 7606 | -9/Exiles | Discovered new exit (range 14) 7719 | -9/Exiles | Met EX-BIN 7740 | -9/Exiles | Aligned with FarCom system 7742 | -9/Exiles | Given EX-Vault access code 7781 | -9/Exiles | Opened EX-Vault 7794 | -9/Exiles | Found Potential Leg 7798 | -9/Exiles | Found Potential Leg 7831 | -9/Exiles | Warned to stay clear of 0b10 Research branches 7953 | -9/Exiles | Left Exiles lab with Potential Leg 7953 | -9/Exiles | Entered Mines 8608 | -8/Mines | Discovered exit to Materials (range 11) 8656 | -8/Mines | Entered Materials 8656 | -8/Materials | Evolved 2 slots: Utility x2 8952 | -8/Materials | Build established: Hacker-Mutant 9431 | -8/Materials | Discovered new exit (range 18) 10277 | -8/Materials | Identified exit to Factory 10867 | -8/Materials | Self-destructed Last Messages --------------- target's core, even penetrating armor to do so. 10819_ Terminal disabled. 10839_ Hacking Suite destroyed. 10839_ Critical hit (Blast). 10839_ Knocked back. 10844_ Penetrated by Slug. 10844_ Mak. Spear destroyed. 10844_ Knocked back. 10848_ U-05 Engineer builds a Wall. 10848_ Penetrated by Slug. 10848_ Arm. Huge Wheel destroyed. 10850_ H-61 Shepherd calls for reinforcements. 10850_ ALERT: Hostile activity reported, dispatching reinforcements to area. 10850_ Great Maul blasted off. 10850_ Knocked back. 10856_ Penetrated by Slug. 10859_ Knocked back. 10859_ U-05 Engineer builds a Wall. Map ----- +----------------------------------------------------+ | | | | | | | | | | | | | | | | | | | | | | | | | | | | | | | ?????????????????????????????????#?##########????? | | ?????????????????????????????????# #????? | | ?????????????????????????????????# """ ####### | | ?????????????????????????????????# "R # """ | | ?????????????????????????????????# """ !! # """ | | ?????????????????????????????????# !! # """ | | ?????????????????????????????????# ! #! [ | | ?????????????????????????????????# # ! = | | ????????????????????#####????????# *= # | | ??????????g#######+## g%###??????#####"#####+###+# | | ?????????? /g go % Hug@#?????????# % | | ???????????# g###?????????# ! | | ???????????# % ########????#=[= % | | ??????? #????##%######## [ | | ????????#### ##### %% #######+## ## | | ???????????# ??????# % # = # # % | | ???????????#??????###+###"## # # # [[ | | ??????????????????# # # ! # +[%[ | | ??????????????????# """"" # # # #![ | | ??????????????????# "" "" / + ] #[[ # | | ??????????????????# # # ! #[ ### # | | ??????????????????# # # # #?# # | | ??????????????????# """ # # #! !#?# # | | ??????????????????# """ # # =######?#=# | | ??????????????????# """ # ##########??????#*# | | ??????????????????# # #???????????????#[# | | ??????????????????########## #???????????????#[[ | | ???????????????????????????# #?????????????###+# | | ???????????????????????????# #?????????????# !%! | | ???????????????????????????# #?????????????# != | | ???????????????????????????# #?????????????# "" | | ???????????????????????????# #?????????????# "" | | ???????????????????????????# #?????????????# "" | | ?????????????##+######+##### +?????????????# | | ?????????????# #?????????????##### | +----------------------------------------------------+ Best States ------------- Heat Dissipation 31 Energy Generation 14 Energy Capacity 280 Matter Stores 300 Matter Capacity 300 Sight Range 18 Terrain Scan Range 16 Terrain Scan Density 10 Armor Coverage 225 Evasion (%) 57 Recoil Reduction 3 Offensive Hacking 20 Item Schematics ----------------- ECM Suite | -9/Materials | Scanalyzed Hacking Suite | -8/Materials | Scanalyzed Melee Analysis Suite | -8/Materials | Scanalyzed Robot Schematics ------------------ None Fabricated ------------ Nothing Repaired ---------- Lgt. Treads | 47% | -9/Materials Med. Armor Plating | 65% | -9/Materials Med. Armor Plating | 70% | -9/Materials Hvy. EM Pulse Gun | 70% | -9/Materials Hvy. Ion Engine | 68% | -9/Materials Alien Tech Used ----------------- None Achievements -------------- None Challenges ------------ None Game ------ Seed TechSigixReconstructor Manual? 0 Play Time 00:55:35 Cumulative 18.5 hours Start 2025.06.05 @ 16:57:18 End 2025.06.06 @ 11:17:04 Sessions 2 Manual Loads 0 Difficulty Rogue Special Mode None Game No. 26 Rogue 26 Adventurer 0 Explorer 0 Win Type - Total 0 Types 0/0/0/0/0/0/0/0/0/0 Lore% 31 Gallery% 21 Achievement% 28 Wizard Run 0 Options --------- Layout 1 ASCII 0 Keyboard 0 Movement Numpad Keybinds 0 Fullscreen 2 Font 24/Smallcaps Map View 50x35 Zoom Use 0% Tactical HUD 1 Map Filters NONE Filters NONE Steam 1 RUN: d67aa19b-f3ad-4ed2-b6e7-52c379f9e608